bitfinex-derivatives/quotes_ETHF0:USTF0_20251107
["timestamp","ask_amount","ask_price","bid_price","bid_amount"]
[1762556534544,0.71891,3444.6,3444.5,0.47401688]
[1762556535143,0.71891,3444.6,3444.5,0.00349688]
[1762556535545,0.2484,3443.7,3443.6,0.47064]
[1762556535745,0.1387,3444.0,3443.0,0.37617508]
[1762556536048,0.1387,3443.5,3442.6,0.47078]
[1762556536249,0.2484,3442.8,3442.7,0.47076]
[1762556536446,0.1387,3444.0,3443.6,0.47064]
[1762556536749,0.1387,3444.0,3443.0,0.3785]
[1762556536750,0.4706,3443.9,3443.0,0.1391]
[1762556536952,0.2484,3443.7,3443.6,0.47064]
[1762556537147,0.71903,3443.7,3443.4,0.47066]
[1762556537347,0.2484,3443.6,3443.5,0.47065]
[1762556537947,0.2484,3443.5,3443.4,0.47067]
[1762556538143,0.2484,3443.5,3443.2,0.00435407]
[1762556538144,0.2484,3443.3,3443.2,0.00435407]
[1762556539547,0.71908,3443.3,3443.2,0.00435407]
[1762556540549,0.71915,3442.8,3442.7,0.00243954]
[1762556542157,0.71915,3442.8,3442.7,0.47320954]
[1762556543553,0.2484,3442.8,3442.7,0.47320954]
[1762556543755,1.0903,3443.0,3440.5,0.1391]
[1762556544053,1.59445911,3442.9,3441.3,0.47096]
[1762556544358,0.47086,3442.0,3441.5,0.61003]
[1762556544556,0.47086,3442.0,3441.6,0.47091]
[1762556544758,0.47088,3441.9,3441.5,0.14113493]
[1762556545048,0.47089,3441.8,3441.5,0.61205493]
[1762556545647,0.4709,3441.7,3441.5,0.61205493]
[1762556545849,0.4709,3441.7,3441.5,0.14113493]
[1762556546258,0.47088,3441.9,3441.5,0.14113493]
[1762556546653,0.47088,3441.9,3441.5,0.61206493]
[1762556546849,0.47089,3441.8,3441.5,0.61206493]
[1762556547049,0.00339187,3442.0,3441.5,0.14113493]
[1762556547451,0.00339187,3442.0,3441.8,0.47088]
[1762556547653,0.00339187,3442.0,3441.5,0.14113493]
[1762556548144,0.47089,3441.8,3441.7,0.4709]
[1762556548348,0.00339187,3442.0,3441.9,0.2394]
[1762556549655,0.09082641,3443.4,3442.5,0.1475]
[1762556549952,0.47071,3443.1,3443.0,0.1475]
[1762556550459,0.72523469,3443.9,3443.0,0.1475]
[1762556550647,0.09082641,3443.8,3443.1,0.00435407]
[1762556550850,0.00435407,3443.8,3443.1,0.00435407]
[1762556551458,0.47063,3443.7,3443.5,0.1475]
[1762556551958,0.00435407,3443.8,3443.6,0.47064]
[1762556552358,0.00435407,3443.8,3443.7,0.23]
[1762556552554,0.00234153,3443.9,3443.8,0.70061]
[1762556552749,0.47051,3444.6,3444.5,0.1475]
[1762556553350,0.72647496,3445.4,3444.0,0.1475]
[1762556553553,0.72647496,3445.3,3444.0,0.1475]
[1762556553754,0.00435407,3445.0,3444.0,0.15119111]
[1762556553955,0.47057,3444.1,3444.0,0.15119111]
[1762556555061,0.47057,3444.2,3444.0,0.15119111]
[1762556556157,0.4707,3443.2,3442.5,0.1475]
[1762556556359,0.4707,3443.2,3442.6,0.47078]
[1762556556759,0.4707,3443.2,3442.7,0.47076]
[1762556556965,0.4707,3443.2,3443.0,0.14968489]
[1762556560261,0.4707,3443.2,3443.0,0.00218489]
[1762556560463,0.47078,3442.7,3442.5,0.1475]
[1762556560857,0.47078,3442.7,3442.0,0.1475]
[1762556560858,0.47083,3442.2,3442.0,0.1475]
[1762556561563,0.47382817,3442.2,3442.0,0.15072606]
[1762556563266,0.09082848,3442.1,3442.0,0.15072606]
[1762556563463,0.47382817,3442.2,3442.0,0.15072606]
[1762556563859,0.09082856,3442.1,3442.0,0.15072606]
[1762556564369,0.09082856,3442.1,3442.0,0.00322606]
[1762556565273,0.56167856,3442.1,3442.0,0.00322606]
[1762556565575,1.20280283,3442.1,3442.0,0.15092606]
[1762556571169,1.20280283,3442.1,3442.0,0.00322606]
[1762556572176,1.20280283,3442.1,3442.0,0.15092606]
[1762556574178,1.20280283,3442.1,3442.0,0.00322606]
[1762556575673,0.47091,3441.6,3441.5,0.1475]
[1762556576880,0.47091,3441.6,3441.5,0.38630637]
[1762556577480,0.47091,3441.7,3441.6,0.7176]
[1762556578477,0.47089,3441.8,3441.7,0.47089]
[1762556578675,0.47087,3441.9,3441.8,0.47088]
[1762556578880,0.47087,3441.9,3441.8,0.71758]
[1762556579978,0.47087,3441.9,3441.8,0.2467]
[1762556580481,1.55932241,3442.9,3441.5,0.15080637]
[1762556580482,3.59996823,3443.4,3443.3,0.47068]
[1762556580780,0.2381,3444.1,3444.0,0.1423]
[1762556580969,0.47056,3444.2,3444.0,0.1423]
[1762556581177,0.1281,3445.0,3444.3,0.2467]
[1762556581382,0.47052,3444.5,3444.3,0.2467]
[1762556581681,0.00435407,3444.7,3444.5,0.61281]
[1762556581885,0.00435407,3444.7,3444.6,0.2467]
[1762556583574,0.00435407,3444.7,3444.5,0.61281]
[1762556584180,0.00435407,3444.7,3444.6,0.2467]
[1762556585476,0.00435407,3444.7,3444.6,8.2467]
[1762556585675,0.00229237,3445.0,3444.9,0.71716]
[1762556586679,0.00229237,3445.0,3444.9,8.71716]
[1762556586880,0.47028,3446.3,3446.0,0.1423]
[1762556587083,0.47029,3446.2,3446.0,0.1423]
[1762556587777,0.00266161,3446.2,3446.1,0.717]
[1762556589578,0.00266161,3446.2,3445.8,0.00435407]
[1762556589579,0.47033,3445.9,3445.8,0.00435407]
[1762556589794,0.70843,3445.9,3445.8,0.00435407]
[1762556590884,0.47033,3445.9,3445.8,0.00435407]
[1762556591885,0.47033,3445.9,3445.8,0.25105407]
[1762556595684,0.47295161,3446.2,3446.1,0.2467]
[1762556596385,0.47295161,3446.2,3446.0,0.1423]
[1762556596590,0.4703,3446.1,3446.0,0.1423]
[1762556597192,0.47033,3445.9,3445.8,0.00435407]
[1762556598491,0.70843,3445.9,3445.8,0.00435407]
[1762556599594,0.47044,3445.1,3445.0,0.1423]
[1762556599786,0.4705,3444.6,3444.5,0.85952]
[1762556599982,0.4705,3444.6,3444.5,0.389]
[1762556600591,0.4705,3444.6,3444.5,0.1423]
[1762556602392,0.4705,3444.6,3444.5,0.61282]
[1762556602600,0.4705,3444.6,3444.5,0.85952]
[1762556606808,0.1324,3446.0,3445.0,0.3777]
[1762556607014,0.47038,3445.5,3445.4,0.2287]
[1762556608011,0.47043,3445.2,3445.0,0.149]
[1762556608215,0.47043,3445.2,3445.0,0.61945]
[1762556608709,0.1324,3446.0,3444.5,0.61281]
[1762556608908,0.1324,3446.0,3444.5,0.1423]
[1762556609108,0.4705,3444.6,3444.5,0.1423]
[1762556609307,0.4705,3444.6,3444.5,0.61282]
[1762556609516,0.4705,3444.6,3444.5,0.84152]
[1762556611518,0.47049,3444.7,3444.6,0.69918]
[1762556613416,0.47048,3444.8,3444.7,0.69916]
[1762556616021,0.4705,3444.7,3444.6,0.4705]
[1762556616418,0.6993,3444.7,3444.6,0.4705]
[1762556617412,0.4705,3444.7,3444.6,0.4705]
[1762556617611,0.4705,3444.7,3444.6,0.6992]
[1762556618618,1.03362024,3445.6,3444.5,0.1423]
[1762556618819,0.4705,3444.6,3444.5,0.84152]
[1762556620020,1.53229307,3445.7,3444.3,0.00221958]
[1762556620021,0.69933,3444.4,3444.3,0.00221958]
[1762556620318,0.00435407,3444.7,3444.3,0.23091958]
[1762556620520,0.47484407,3444.7,3444.6,0.2287]
[1762556620913,0.47484407,3444.7,3444.6,0.6992]
[1762556621115,0.00435407,3444.7,3444.6,0.6992]
[1762556622019,1.03362024,3445.9,3445.5,0.1371]
[1762556622220,1.03362024,3446.0,3445.5,0.1371]
[1762556622521,1.03362024,3445.9,3445.5,0.1371]
[1762556622820,0.47037,3445.6,3445.5,0.1371]
[1762556623926,0.47037,3445.6,3445.5,0.60748]
[1762556624227,0.47037,3445.6,3445.5,0.1371]
[1762556624626,0.47038,3445.5,3445.4,0.71429]
[1762556625125,0.47038,3445.5,3445.4,0.2439]
[1762556626322,0.47038,3445.5,3445.4,0.7143]
[1762556626522,0.47038,3445.5,3445.4,0.2439]
[1762556628132,0.47041,3445.3,3445.2,0.71432]
[1762556628333,0.47041,3445.3,3445.2,0.2439]
[1762556628629,0.47041,3445.3,3445.2,0.71432]
[1762556629032,0.47044,3445.1,3445.0,0.1371]
[1762556629434,0.2283,3444.9,3444.8,1.03890834]
[1762556629631,0.4705,3444.6,3444.5,1.65840834]
[1762556629933,1.03362024,3445.4,3444.7,0.47049]
[1762556630132,0.47046,3444.9,3444.8,0.2439]
[1762556630730,1.16482024,3445.5,3444.5,1.18790834]
[1762556630731,0.6988,3444.6,3444.5,1.03890834]
[1762556630935,0.69882,3444.5,3444.4,1.03890834]
[1762556631124,0.47052,3444.5,3444.4,1.75333834]
[1762556631530,0.47044,3445.1,3445.0,0.381]
[1762556631730,0.47043,3445.2,3445.0,0.381]
[1762556631927,0.47041,3445.3,3445.2,0.71431]
[1762556632329,0.47041,3445.3,3445.2,0.2439]
[1762556633336,0.47044,3445.1,3445.0,0.60755]
[1762556633529,0.47042,3445.2,3445.1,0.71432]
[1762556634637,0.47041,3445.3,3445.2,0.47041]
[1762556635139,0.47043,3445.2,3445.1,0.2439]
[1762556635342,0.00435407,3445.9,3445.8,0.2439]
[1762556635541,0.00435407,3445.9,3445.5,0.1371]
[1762556635834,0.00435407,3445.9,3445.3,0.47041]
[1762556636039,0.47039,3445.5,3445.3,0.47041]
[1762556636242,0.47039,3445.4,3445.3,0.71431]
[1762556636432,0.71301,3445.3,3445.2,1.03890834]
[1762556636631,0.71301,3445.3,3445.2,1.50932834]
[1762556636925,0.71301,3445.3,3445.2,1.03890834]
[1762556637231,0.71302,3445.2,3445.1,1.03890834]
[1762556637432,0.71305,3445.0,3444.9,1.50936834]
[1762556637831,0.47043,3445.2,3445.1,0.2464]
[1762556638037,0.2426,3445.6,3445.0,1.67954923]
[1762556638333,0.71303,3445.2,3445.1,1.04318572]
[1762556639234,0.71304,3445.1,3445.0,1.04318572]
[1762556639536,0.71312,3444.5,3444.4,1.04318572]
[1762556639736,0.4705,3444.6,3444.5,0.85301]
[1762556640140,0.4705,3444.6,3444.5,0.3825]
[1762556640535,1.03362024,3445.4,3444.5,0.1361]
[1762556640738,0.47045,3445.0,3444.9,0.2464]
[1762556640934,0.83962,3444.5,3444.4,1.04318572]
[1762556641132,0.71313,3444.4,3444.3,1.0454053]
[1762556641438,0.2426,3444.7,3444.6,0.4705]
[1762556641640,0.47046,3445.0,3444.5,0.1361]
[1762556641834,1.27622024,3445.4,3444.5,0.1361]
[1762556642030,0.47049,3444.8,3444.7,0.47049]
[1762556642237,0.47045,3445.1,3445.0,0.85294]
[1762556642438,0.47045,3445.1,3445.0,0.3825]
[1762556642633,0.71305,3445.1,3445.0,0.1361]
[1762556642834,0.47048,3444.9,3444.6,1.04318572]
[1762556643035,0.47048,3444.8,3444.7,0.47049]
[1762556643237,0.7131,3444.6,3444.5,1.04318572]
[1762556643444,0.1265,3445.0,3444.4,0.47053]
[1762556643445,0.47052,3444.5,3444.4,0.47053]
[1762556643740,0.47052,3444.5,3444.4,1.04318572]
[1762556643939,0.47053,3444.4,3444.3,1.7623453]
[1762556644335,0.71313,3444.4,3444.3,1.0454053]
[1762556644540,0.71313,3444.4,3444.3,0.00221958]
[1762556644844,0.47053,3444.4,3444.3,0.00221958]
[1762556646043,0.47053,3444.4,3444.3,0.47275958]
[1762556646239,0.47048,3444.8,3444.7,0.71688]
[1762556646438,0.71313,3444.4,3444.3,0.00221958]
[1762556646646,1.03362024,3445.3,3444.3,0.00221958]
[1762556646839,0.47053,3444.5,3444.4,0.71692]
[1762556647039,0.47049,3444.8,3444.7,0.71688]
[1762556647539,0.47046,3445.0,3444.9,0.47045]
[1762556647740,0.4705,3444.6,3444.5,0.1361]
[1762556649041,0.7131,3444.6,3444.5,0.1361]
[1762556649344,0.7131,3444.6,3444.5,0.60662]
[1762556650042,0.7131,3444.6,3444.5,0.1361]
[1762556650234,0.71313,3444.4,3444.3,0.00221958]
[1762556650743,0.2426,3444.4,3444.3,0.00221958]
[1762556651046,0.47052,3444.5,3444.4,0.2464]
[1762556651343,1.03362024,3445.3,3444.5,0.1361]
[1762556651541,0.47049,3444.8,3444.7,0.71688]
[1762556651842,0.71306,3445.0,3444.5,0.1361]
[1762556652042,0.47049,3444.8,3444.7,0.71688]
[1762556652352,0.47048,3444.8,3444.7,0.47048]
[1762556652644,0.71306,3445.0,3444.9,0.47045]
[1762556652841,0.47046,3445.0,3444.9,0.47045]
[1762556653045,0.47041,3445.3,3445.2,0.71681]
[1762556653544,0.47043,3445.1,3445.0,0.1361]
[1762556654442,0.00435407,3445.9,3444.3,0.00221958]
[1762556654443,0.71309,3444.7,3444.6,1.04318572]
[1762556654640,0.47049,3444.7,3444.6,0.4705]
[1762556654842,0.4705,3444.6,3444.5,0.1361]
[1762556655042,0.71312,3444.5,3444.4,1.04318572]
[1762556655343,1.17042024,3445.5,3444.4,0.47053]
[1762556655545,0.47053,3444.4,3444.3,1.2918053]
[1762556655744,0.47053,3444.4,3444.3,0.24861958]
[1762556655946,0.47052,3444.5,3444.3,0.47275958]
[1762556656139,1.03362024,3445.4,3444.3,0.47275958]
[1762556656140,0.47053,3444.4,3444.3,0.47275958]
[1762556657149,0.47053,3444.5,3444.4,0.47052]
[1762556658141,0.47053,3444.4,3444.3,1.0454053]
[1762556658537,0.47053,3444.4,3444.3,0.00221958]
[1762556658839,0.71313,3444.4,3444.3,0.47275958]
[1762556659550,0.71313,3444.4,3444.3,0.00221958]
[1762556660546,0.1265,3445.0,3444.3,0.00221958]
[1762556660740,0.47051,3444.6,3444.5,0.6066]
[1762556661049,0.47051,3444.6,3444.5,0.1361]
[1762556661946,0.71313,3444.4,3444.3,0.00221958]
[1762556668753,0.71101,3443.8,3443.7,0.21134]
[1762556669546,0.71101,3443.8,3443.7,0.21379035]
[1762556670945,0.64745,3443.5,3443.4,0.00435407]
[1762556671150,0.64504,3442.9,3442.8,1.04318572]
[1762556671349,0.47073,3443.0,3442.7,1.51394572]
[1762556671550,0.47074,3442.9,3442.7,1.04318572]
[1762556671853,0.47305528,3442.9,3442.8,0.47075]
[1762556672049,0.64075,3442.8,3442.7,0.00334796]
[1762556672456,0.47075,3442.8,3442.7,0.00334796]
[1762556672649,0.47075,3442.8,3442.7,0.24724796]
[1762556673354,0.64075,3442.8,3442.7,0.00334796]
[1762556674870,0.47075,3442.8,3442.7,0.00334796]
[1762556675261,0.64075,3442.8,3442.7,0.00334796]
[1762556677462,0.17,3442.8,3442.7,0.00334796]
[1762556678375,0.64075,3442.8,3442.7,0.00334796]
[1762556681279,0.64075,3442.8,3442.7,0.47410796]
[1762556681580,0.64075,3442.8,3442.7,0.00334796]
[1762556697188,0.63695,3442.1,3442.0,0.1398]
[1762556697389,0.637,3441.7,3441.6,1.51409572]
[1762556697589,0.637,3441.7,3441.6,0.47091]
[1762556697788,0.47091,3441.6,3441.5,1.65390572]
[1762556697987,0.63701,3441.6,3441.5,1.18298572]
[1762556698295,0.63701,3441.6,3441.5,0.14244524]
[1762556699192,0.63701,3441.6,3441.5,0.61937524]
[1762556699585,0.47091,3441.6,3441.5,1.90166096]
[1762556699792,0.00435407,3441.9,3441.5,1.19163096]
[1762556699980,0.47091,3441.7,3441.6,0.71001]
[1762556700494,0.63701,3441.6,3441.5,1.19163096]
[1762556700887,0.00435407,3441.9,3441.5,0.38754524]
[1762556701089,0.00435407,3441.9,3441.8,0.70999]
[1762556702589,0.47079,3442.5,3442.4,0.7099]
[1762556703492,0.00435407,3442.8,3442.4,0.2391]
[1762556703697,0.00435407,3442.8,3442.7,0.70986]
[1762556703897,0.47510407,3442.8,3442.7,0.2391]
[1762556704099,0.47076,3442.7,3442.5,0.1458]
[1762556704291,0.47076,3442.7,3442.6,0.70988]
[1762556704790,0.00435407,3442.8,3442.6,0.70988]
[1762556704991,0.00435407,3442.8,3442.7,0.47076]
[1762556705191,0.00435407,3442.8,3442.7,0.70986]
[1762556707185,0.00231528,3442.9,3442.8,0.70985]
[1762556707386,0.00231528,3442.9,3442.8,1.75361112]
[1762556708494,0.00231528,3442.9,3442.8,0.70985]
[1762556708898,0.00231528,3442.9,3442.8,1.75361112]
[1762556710796,1.528e-05,3442.9,3442.8,9.75361112]
[1762556711103,1.528e-05,3442.9,3442.8,10.25329923]
[1762556711397,1.528e-05,3442.9,3442.8,8.70985]
[1762556711696,0.47075528,3442.9,3442.8,0.2391]
[1762556711897,1.528e-05,3442.9,3442.8,1.51364804]
[1762556712096,1.03362024,3444.3,3442.5,2.23278457]
[1762556712297,1.03362024,3444.4,3443.6,0.47064]
[1762556712502,0.47062,3443.8,3443.7,0.2391]
[1762556713199,0.47062,3443.8,3443.7,0.70973]
[1762556713200,0.00226481,3443.8,3443.7,0.70973]
[1762556713994,0.47287481,3443.8,3443.7,0.2391]
[1762556714596,0.00226481,3443.8,3443.7,0.2391]
[1762556714797,0.00226481,3443.8,3443.7,0.70973]
[1762556715500,0.47287481,3443.8,3443.7,0.2391]
[1762556715803,0.00226481,3443.8,3443.7,0.70973]
[1762556716005,0.47287481,3443.8,3443.7,0.2391]
[1762556716604,0.47287481,3443.8,3443.7,0.70973]
[1762556717609,0.47287481,3443.8,3443.7,0.2391]
[1762556719308,0.64774,3443.6,3443.5,0.1458]
[1762556721808,0.00226481,3443.8,3443.5,0.1458]
[1762556722007,0.00226481,3443.8,3443.7,0.2391]
[1762556722712,0.47287481,3443.8,3443.7,0.70973]
[1762556723925,0.64997481,3443.8,3443.7,0.2391]
[1762556724112,0.64774,3443.6,3443.5,0.1458]
[1762556724322,0.47064,3443.6,3443.5,0.3849]
[1762556725121,0.00226481,3443.8,3443.7,0.70973]
[1762556727126,0.00435407,3444.1,3444.0,0.84539]
[1762556728027,0.00765718,3444.1,3444.0,0.84869184]
[1762556732935,0.4705,3444.6,3444.5,0.8453]
[1762556733831,0.47258669,3444.6,3444.5,0.8453]
[1762556735826,0.00208669,3444.6,3444.5,0.8453]
[1762556736438,0.47258669,3444.6,3444.5,0.8453]
[1762556736941,0.00208669,3444.6,3444.5,0.8453]
[1762556739931,0.47258669,3444.6,3444.5,0.8453]
[1762556740533,0.00208669,3444.6,3444.5,0.8453]
[1762556742334,0.47258669,3444.6,3444.5,0.8453]
[1762556742637,0.47037,3445.7,3445.6,0.47037]
[1762556742835,1.03362024,3446.4,3445.6,0.70237]
[1762556743031,0.47034,3445.8,3445.7,0.70235]
[1762556743339,0.66451,3446.1,3446.0,0.1475]
[1762556743635,0.66668255,3446.1,3446.0,0.1475]
[1762556749532,0.47247255,3446.1,3446.0,0.84981]
[1762556749738,0.00217255,3446.1,3446.0,0.84981]
[1762556750244,0.47247255,3446.1,3446.0,0.84981]
[1762556751942,0.00217255,3446.1,3446.0,0.84981]
[1762556754239,0.66667255,3446.1,3446.0,0.1475]
[1762556754444,0.19637255,3446.1,3446.0,0.1475]
[1762556754749,0.66667255,3446.1,3446.0,0.1475]
[1762556755448,0.47034,3445.8,3445.7,0.00435407]
[1762556756948,0.66454,3445.8,3445.7,0.00435407]
[1762556761052,0.47034,3445.8,3445.7,0.72520407]
[1762556761251,0.47247255,3446.1,3446.0,0.87051]
[1762556761453,0.47247255,3446.1,3446.0,0.4002]
[1762556761751,0.66677255,3446.1,3446.0,0.1497]
[1762556761950,0.66464,3445.8,3445.7,0.47470407]
[1762556762154,0.00217255,3446.1,3446.0,0.87051]
[1762556762355,0.47247255,3446.1,3446.0,0.4002]
[1762556762551,0.66677255,3446.1,3446.0,0.1497]
[1762556764454,0.66464,3445.8,3445.7,0.00435407]
[1762556766360,0.00217255,3446.1,3446.0,0.4002]
[1762556766561,0.00217255,3446.1,3446.0,0.87051]
[1762556767149,4.726,3447.4,3446.0,0.87051]
[1762556767150,0.47014,3447.3,3447.0,0.1497]
[1762556767364,0.47014,3447.3,3447.2,0.2505]
[1762556768059,0.4735587,3447.3,3447.2,0.25399874]
[1762556769752,0.6743587,3447.3,3447.2,0.00349874]
[1762556770261,0.6743587,3447.3,3447.2,0.25399874]
[1762556771265,0.0034187,3447.3,3447.2,0.72414874]
[1762556772560,0.0034187,3447.3,3447.2,0.25399874]
[1762556772762,0.0034187,3447.3,3447.2,0.72414874]
[1762556776167,0.4735587,3447.3,3447.2,0.25399874]
[1762556776370,0.4735587,3447.3,3447.2,0.00349874]
[1762556776371,0.6743587,3447.3,3447.2,0.00349874]
[1762556778376,0.4735587,3447.3,3447.2,0.00349874]
[1762556778675,0.6743587,3447.3,3447.2,0.00349874]
[1762556779464,0.4735587,3447.3,3447.2,0.25399874]
[1762556779668,0.6743587,3447.3,3447.2,0.00349874]
[1762556781974,0.4735587,3447.3,3447.2,0.25399874]
[1762556782979,0.6743587,3447.3,3447.2,0.00349874]
[1762556784272,0.4735587,3447.3,3447.2,0.25399874]
[1762556785383,0.0034187,3447.3,3447.2,0.72414874]
[1762556786281,0.00277546,3447.6,3447.5,0.84801]
[1762556787278,0.47533511,3447.6,3447.5,0.3779]
[1762556787483,0.67983511,3447.6,3447.5,0.147]
[1762556787879,0.67464,3447.3,3447.2,0.00349874]
[1762556788178,0.00524511,3447.6,3445.5,0.147]
[1762556788179,0.2045,3446.6,3446.5,0.61994]
[1762556788579,0.47021,3446.8,3446.6,0.47022]
[1762556789174,0.47021,3446.8,3446.6,0.47227431]
[1762556789382,0.47022,3446.7,3446.6,0.23295431]
[1762556789579,0.67472,3446.7,3446.6,0.00205431]
[1762556794084,0.47022,3446.7,3446.6,0.70318431]
[1762556794483,0.0735,3447.5,3446.6,0.23295431]
[1762556794689,0.0735,3447.5,3446.7,0.47022]
[1762556794890,0.4702,3446.9,3446.8,0.2309]
[1762556795392,0.47022,3446.7,3446.6,0.23295431]
[1762556795991,0.47021,3446.8,3446.7,0.2309]
[1762556796189,0.47021,3446.8,3446.7,0.70112]
[1762556797200,0.4702,3446.8,3446.7,0.70112]
[1762556798097,0.2045,3447.0,3446.9,0.47019]
[1762556798302,0.67468,3447.0,3446.9,0.70109]
[1762556798799,1.03886535,3447.6,3447.1,0.2309]
[1762556798994,0.00524511,3447.6,3447.1,0.2309]
[1762556799800,0.47015,3447.2,3447.1,0.2309]
[1762556799995,0.00524511,3447.6,3447.1,0.2309]
[1762556800203,0.47014,3447.3,3447.2,0.2309]
[1762556800803,0.47014,3447.3,3447.2,0.70105]
[1762556801300,0.00524511,3447.6,3447.5,0.3706]
[1762556801498,0.68013511,3447.6,3447.5,0.137]
[1762556801795,0.47021,3446.8,3446.6,1.04241252]
[1762556802002,0.47021,3446.8,3446.7,0.2336]
[1762556803604,0.47019,3446.9,3446.8,0.47019]
[1762556803994,0.00524511,3447.6,3446.7,0.2336]
[1762556803995,0.47021,3446.8,3446.7,0.2336]
[1762556804197,0.67499,3447.0,3446.9,0.47019]
[1762556805203,0.67502,3446.7,3446.6,0.00205431]
[1762556805797,0.67501,3446.8,3446.7,0.47021]
[1762556806198,1.03886535,3447.6,3446.9,0.47019]
[1762556806399,0.2048,3447.1,3447.0,0.137]
[1762556807607,0.67496,3447.1,3447.0,0.137]
[1762556811308,0.67496,3447.1,3447.0,0.60718]
[1762556813606,0.67496,3447.1,3447.0,0.137]
[1762556813913,0.00524511,3447.6,3447.5,0.84071]
[1762556817219,0.47533511,3447.6,3447.5,0.84071]
[1762556817511,0.47533511,3447.6,3447.5,0.3706]
[1762556817719,0.47533511,3447.6,3447.5,0.84071]
[1762556821422,0.00524511,3447.6,3447.5,0.84071]
[1762556822414,0.00524511,3447.6,3447.5,0.137]
[1762556822415,0.21074511,3447.6,3447.5,0.137]
[1762556823020,0.00524511,3447.6,3447.5,0.3668]
[1762556823421,0.47533511,3447.6,3447.5,0.3668]
[1762556824424,0.47533511,3447.6,3447.5,0.83691]
[1762556825023,0.67564,3447.3,3447.2,1.04222266]
[1762556825320,0.2055,3447.1,3447.0,1.64939266]
[1762556825624,0.67566,3447.1,3447.0,0.60717]
[1762556825814,0.67566,3447.1,3447.0,0.137]
[1762556826819,0.6757,3446.8,3446.7,1.04222266]
[1762556827126,0.47022,3446.7,3446.6,0.00205431]
[1762556827422,0.2055,3446.8,3446.7,0.47022]
[1762556827622,0.67568,3447.0,3446.9,0.2298]
[1762556827817,0.47019,3446.9,3446.8,0.4702]
[1762556828018,0.47022,3446.7,3446.6,0.00205431]
[1762556828422,0.47018,3447.0,3446.8,0.47019]
[1762556828719,0.67569,3446.9,3446.8,0.47019]
[1762556828928,0.67572,3446.7,3446.6,0.00205431]
[1762556831829,0.67572,3446.7,3446.6,0.47228431]
[1762556832229,1.10772024,3447.5,3446.6,0.00205431]
[1762556832529,0.2055,3446.7,3446.6,0.00205431]
[1762556832725,0.2055,3446.7,3446.6,0.47228431]
[1762556832917,0.2055,3446.7,3446.6,0.70208431]
[1762556833225,0.2055,3446.7,3446.6,0.00205431]
[1762556833427,0.09071139,3447.4,3446.6,0.23185431]
[1762556833630,1.12433196,3447.4,3446.7,0.47022]
[1762556833832,0.4702,3446.9,3446.7,0.47022]
[1762556834425,0.4702,3446.9,3446.8,0.4702]
[1762556835936,0.4702,3446.9,3446.8,0.7]
[1762556838332,0.47016,3447.2,3447.1,0.69995]
[1762556838729,0.47016,3447.1,3447.0,0.60887]
[1762556839029,0.47022,3446.7,3446.6,0.47228431]
[1762556839431,0.47022,3446.7,3446.6,0.70208431]
[1762556840234,0.67572,3446.7,3446.6,0.00205431]
[1762556841135,0.2055,3446.0,3445.9,0.47033]
[1762556841330,0.2055,3446.2,3446.0,0.1387]
[1762556841530,0.67579,3446.2,3446.0,0.1387]
[1762556841729,0.6758,3446.1,3446.0,0.1387]
[1762556841930,0.6758,3446.1,3446.0,0.60901]
[1762556842137,0.6758,3446.1,3446.0,0.14171379]
[1762556842335,0.6758,3446.1,3446.0,0.61202379]
[1762556843335,0.6758,3446.1,3446.0,0.14171379]
[1762556843537,4.88486507,3447.0,3446.1,0.47029]
[1762556843737,0.47029,3446.2,3446.0,0.14171379]
[1762556843937,0.4703,3446.1,3446.0,0.61202379]
[1762556844235,0.4703,3446.1,3446.0,0.14171379]
[1762556845931,0.4703,3446.1,3446.0,0.00301379]
[1762556846533,0.47034,3445.8,3445.7,0.00435407]
[1762556847632,0.47034,3445.8,3445.7,0.00642789]
[1762556848040,0.47044,3445.1,3445.0,0.1387]
[1762556848935,0.47044,3445.1,3444.5,0.1387]
[1762556848936,0.47049,3444.7,3444.5,0.60922]
[1762556849136,0.47049,3444.7,3444.6,0.4705]
[1762556849637,0.47049,3444.7,3444.6,0.7214]
[1762556850537,0.47049,3444.8,3444.5,0.14116142]
[1762556850735,0.47049,3444.8,3444.7,0.47049]
[1762556851441,0.47049,3444.8,3444.5,0.14116142]
[1762556851739,0.4705,3444.7,3444.5,0.14116142]
[1762556851938,0.4705,3444.7,3444.6,0.2509]
[1762556852544,0.00265541,3445.1,3444.5,0.39206142]
[1762556852545,0.4705,3444.6,3444.5,0.39206142]
[1762556852734,0.47309541,3445.1,3445.0,0.1476]
[1762556854738,0.47309541,3445.1,3445.0,0.86895]
[1762556855243,0.00265541,3445.1,3445.0,0.61805]
[1762556855538,0.00265541,3445.1,3445.0,0.86895]
[1762556858840,0.00265541,3445.1,3444.5,0.14116142]
[1762556858841,0.4705,3444.6,3444.5,0.00246142]
[1762556859036,0.47057,3444.1,3444.0,0.1476]
[1762556860042,0.47057,3444.1,3444.0,0.00290713]
[1762556865640,0.47071,3443.1,3443.0,0.1476]
[1762556866343,0.47078,3442.6,3442.3,0.47081]
[1762556866645,0.47417869,3442.6,3442.5,0.15035187]
[1762556867740,0.47417869,3442.6,3442.5,0.62114187]
[1762556868540,0.00339869,3442.6,3442.5,0.86244187]
[1762556868841,0.47417869,3442.6,3442.5,0.86244187]
[1762556869447,0.00339869,3442.6,3442.5,0.86244187]
[1762556870149,0.47417869,3442.6,3442.5,0.15035187]
[1762556872843,0.47417869,3442.6,3442.5,0.39165187]
[1762556874349,0.00435407,3442.9,3442.8,0.71205]
[1762556875450,0.00646777,3442.9,3442.8,0.71205]
[1762556875948,0.00646777,3442.9,3442.8,0.2413]
[1762556876356,0.00646777,3442.9,3442.8,0.71205]
[1762556879060,0.47720777,3442.9,3442.8,0.47075]
[1762556879253,0.47075,3442.8,3442.6,0.47077]
[1762556879456,0.47075,3442.8,3442.7,0.47076]
[1762556879956,0.47078,3442.6,3442.5,0.38135187]
[1762556880155,0.47078,3442.6,3442.5,0.15035187]
[1762556883657,0.47078,3442.6,3442.5,0.38135187]
[1762556883959,0.56157485,3442.8,3442.7,0.231]